fUST/lending_fUST_20251012
["ID","MTS","AMOUNT","RATE_DAILY","PERIOD"]
[390908408,1760210710186,500.0,0.00022589,2]
[390908409,1760210710457,519.45,0.00022589,2]
[390908410,1760210711505,500.0,0.00022588,2]
[390908411,1760210711770,500.0,0.00022588,2]
[390908412,1760210712003,242.92856182,0.00022588,2]
[390908413,1760210712658,500.0,0.00022589,2]
[390908414,1760210715754,500.0,0.00022589,2]
[390908415,1760210715986,500.0,0.00022588,2]
[390908416,1760210716019,500.0,0.00022589,2]
[390908417,1760210716235,500.0,0.00022588,2]
[390908418,1760210716292,500.0,0.00022589,2]
[390908419,1760210716478,500.0,0.00022588,2]
[390908420,1760210716576,636.9,0.00022589,2]
[390908421,1760210716759,500.0,0.00022588,2]
[390908422,1760210716977,500.0,0.00022588,2]
[390908423,1760210717231,500.0,0.00022588,2]
[390908424,1760210717461,199.72915448,0.00022588,2]
[390908425,1760210718827,5000.0,0.00022589,2]
[390908426,1760210720769,500.0,0.00022588,2]
[390908427,1760210721783,172.3296369,0.00022452,2]
[390908428,1760210726415,500.0,0.00022589,2]
[390908429,1760210731685,500.0,0.00022588,2]
[390908430,1760210731939,500.0,0.00022588,2]
[390908431,1760210732172,500.0,0.00022588,2]
[390908432,1760210732527,500.0,0.00022588,2]
[390908433,1760210732777,500.0,0.00022588,2]
[390908434,1760210733020,527.62156665,0.00022588,2]
[390908435,1760210735599,202.65794514,0.00022491,2]
[390908436,1760210737198,-467.30812341,0.00022589,2]
[390908437,1760210737458,500.0,0.00022589,2]
[390908438,1760210739473,500.0,0.00022589,2]
[390908439,1760210740831,500.0,0.00022589,2]
[390908440,1760210741461,5000.0,0.00022589,2]
[390908441,1760210741786,500.0,0.00022589,2]
[390908442,1760210742703,500.0,0.00022588,2]
[390908443,1760210742902,500.0,0.00022588,2]
[390908444,1760210742939,500.0,0.00022588,2]
[390908445,1760210743204,500.0,0.00022588,2]
[390908446,1760210743453,310.55,0.00022588,2]
[390908447,1760210743978,500.0,0.00022589,2]
[390908448,1760210744823,500.27686965,0.00022588,2]
[390908449,1760210749835,500.0,0.00022588,2]
[390908450,1760210750096,500.0,0.00022588,2]
[390908451,1760210750328,500.0,0.00022588,2]
[390908452,1760210750539,500.0,0.00022589,2]
[390908453,1760210750569,500.0,0.00022588,2]
[390908454,1760210750806,500.0,0.00022588,2]
[390908455,1760210751061,500.0,0.00022588,2]
[390908456,1760210751303,595.82,0.00022588,2]
[390908457,1760210754957,500.0,0.00022589,2]
[390908458,1760210755206,523.06168664,0.00022589,2]
[390908459,1760210755233,500.0,0.00022588,2]
[390908460,1760210755489,500.0,0.00022588,2]
[390908461,1760210755732,500.0,0.00022588,2]
[390908462,1760210755982,359.68,0.00022588,2]
[390908463,1760210756769,-500.0,0.0002259,2]
[390908464,1760210756800,-500.0,0.0002259,2]
[390908465,1760210756830,-500.0,0.0002259,2]
[390908466,1760210756858,-500.0,0.0002259,2]
[390908467,1760210756887,-500.0,0.0002259,2]
[390908468,1760210756915,-500.0,0.0002259,2]
[390908469,1760210756944,-500.0,0.0002259,2]
[390908470,1760210756972,-500.0,0.0002259,2]
[390908471,1760210757003,-500.0,0.0002259,2]
[390908472,1760210757031,-500.0,0.0002259,2]
[390908473,1760210757343,-500.0,0.0002259,2]
[390908474,1760210757371,-500.0,0.0002259,2]
[390908475,1760210757399,-450.92335925,0.0002259,2]
[390908476,1760210762495,300.0,0.0002259,2]
[390908477,1760210764561,5000.0,0.0002259,2]
[390908478,1760210766099,500.0,0.00022589,2]
[390908479,1760210766562,500.0,0.00022588,2]
[390908480,1760210766830,500.0,0.00022588,2]
[390908481,1760210767072,500.0,0.00022588,2]
[390908482,1760210769057,500.0,0.00022588,2]
[390908483,1760210769312,500.0,0.00022588,2]
[390908484,1760210769989,500.0,0.00022588,2]
[390908485,1760210770260,500.0,0.00022588,2]
[390908486,1760210770490,318.39,0.00022588,2]
[390908487,1760210771078,500.0,0.00022588,2]
[390908488,1760210771346,500.0,0.00022588,2]
[390908489,1760210771625,357.9,0.00022588,2]
[390908490,1760210774140,500.0,0.00022588,2]
[390908491,1760210774275,209.16,0.00022588,2]
[390908492,1760210774924,500.0,0.00022589,2]
[390908493,1760210776862,150.0,0.00019097,2]
[390908494,1760210777255,264.14,0.00020833,2]
[390908495,1760210777655,396.21,0.00022569,2]
[390908496,1760210784389,236.13670223,0.00022589,2]
[390908497,1760210787378,5000.0,0.0002259,2]
[390908498,1760210789284,500.0,0.00022589,2]
[390908499,1760210790685,500.0,0.00022589,2]
[390908500,1760210790922,500.0,0.00022589,2]
[390908501,1760210794032,-500.0,0.0002259,2]
[390908502,1760210794063,-473.21256106,0.0002259,2]
[390908503,1760210794096,-500.0,0.0002259,2]
[390908504,1760210794123,-357.47083217,0.00022591,2]
[390908505,1760210794510,500.0,0.00022589,2]
[390908506,1760210800796,500.0,0.00022589,2]
[390908507,1760210803368,500.0,0.00022588,2]
[390908508,1760210803593,500.0,0.00022588,2]
[390908509,1760210803882,500.0,0.00022588,2]
[390908510,1760210804107,500.0,0.00022588,2]
[390908511,1760210804377,500.0,0.00022588,2]
[390908512,1760210804638,430.2,0.00022588,2]
[390908513,1760210808350,500.0,0.00022588,2]
[390908514,1760210810608,5000.0,0.00022591,2]
[390908515,1760210810640,-500.0,0.00022591,2]
[390908516,1760210810669,-500.0,0.00022591,2]
[390908517,1760210810700,-500.0,0.00022591,2]
[390908518,1760210810733,-500.0,0.00022591,2]
[390908519,1760210810763,-517.96816017,0.00022591,2]
[390908520,1760210810794,-500.0,0.00022591,2]
[390908521,1760210810824,-500.0,0.00022591,2]
[390908522,1760210810853,-500.0,0.00022591,2]
[390908523,1760210810882,-164.21,0.00022591,2]
[390908524,1760210810911,-500.0,0.00022591,2]
[390908525,1760210810940,-135.65367966,0.00022591,2]
[390908526,1760210811694,-364.34632034,0.00022591,2]
[390908527,1760210811723,-500.0,0.00022591,2]
[390908528,1760210811756,-500.0,0.00022591,2]
[390908529,1760210811790,-579.98914533,0.00022591,2]
[390908530,1760210811822,-500.0,0.00022591,2]
[390908531,1760210811854,-500.0,0.00022591,2]
[390908532,1760210811885,-500.0,0.00022591,2]
[390908533,1760210811919,-500.0,0.00022591,2]
[390908534,1760210811954,-491.54631342,0.00022591,2]
[390908535,1760210811984,-500.0,0.00022591,2]
[390908536,1760210812031,-500.0,0.00022591,2]
[390908537,1760210812078,-500.0,0.00022591,2]
[390908538,1760210812113,-500.0,0.00022591,2]
[390908539,1760210812148,-500.0,0.00022591,2]
[390908540,1760210812182,-500.0,0.00022591,2]
[390908541,1760210812211,-369.64064004,0.00022591,2]
[390908542,1760210812241,-500.0,0.00022591,2]
[390908543,1760210812272,-500.0,0.00022591,2]
[390908544,1760210812303,-500.0,0.00022591,2]
[390908545,1760210812333,-500.0,0.00022591,2]
[390908546,1760210812381,-500.0,0.00022591,2]
[390908547,1760210812411,-500.0,0.00022591,2]
[390908548,1760210812443,-315.12,0.00022591,2]
[390908549,1760210812473,-500.0,0.00022591,2]
[390908550,1760210812505,-500.0,0.00022591,2]
[390908551,1760210812539,-500.0,0.00022591,2]
[390908552,1760210812575,-204.46217544,0.00022591,2]
[390908553,1760210812608,-500.0,0.00022591,2]
[390908554,1760210812639,-500.0,0.00022591,2]
[390908555,1760210812679,-500.0,0.00022591,2]
[390908556,1760210812711,-460.84564912,0.00022591,2]
[390908557,1760210813597,-39.15435088,0.00022591,2]
[390908558,1760210813628,-500.0,0.00022591,2]
[390908559,1760210813664,-187.24,0.00022591,2]
[390908560,1760210813696,-500.0,0.00022591,2]
[390908561,1760210813726,-500.0,0.00022591,2]
[390908562,1760210813756,-500.0,0.00022591,2]
[390908563,1760210813787,-500.0,0.00022591,2]
[390908564,1760210813819,-509.26887973,0.00022591,2]
[390908565,1760210813849,-500.0,0.00022591,2]
[390908566,1760210813879,-500.0,0.00022591,2]
[390908567,1760210813911,-500.0,0.00022591,2]
[390908568,1760210813943,-28.68353878,0.00022591,2]
[390908569,1760210815240,500.0,0.00022589,2]
[390908570,1760210815585,500.0,0.00022589,2]
[390908571,1760210815620,500.0,0.00022589,2]
[390908572,1760210815652,-471.31646122,0.00022591,2]
[390908573,1760210815682,-500.0,0.00022591,2]
[390908574,1760210815712,-500.0,0.00022591,2]
[390908575,1760210815741,-500.0,0.00022591,2]
[390908576,1760210815770,-408.06180411,0.00022591,2]
[390908577,1760210815800,-500.0,0.00022591,2]
[390908578,1760210815827,-500.0,0.00022591,2]
[390908579,1760210815855,-500.0,0.00022591,2]
[390908580,1760210815884,-500.0,0.00022591,2]
[390908581,1760210815912,-500.0,0.00022591,2]
[390908582,1760210815946,500.0,0.00022589,2]
[390908583,1760210815977,-500.0,0.00022591,2]
[390908584,1760210816006,-500.0,0.00022591,2]
[390908585,1760210816034,-500.0,0.00022591,2]
[390908586,1760210816065,-500.0,0.00022591,2]
[390908587,1760210816092,-500.0,0.00022591,2]
[390908588,1760210816123,-464.54933903,0.00022591,2]
[390908589,1760210816151,-500.0,0.00022591,2]
[390908590,1760210816179,-500.0,0.00022591,2]
[390908591,1760210816207,-500.0,0.00022591,2]
[390908592,1760210816235,-500.0,0.00022591,2]
[390908593,1760210816496,-502.78,0.00022591,2]
[390908594,1760210816530,-500.0,0.00022591,2]
[390908595,1760210816570,-500.0,0.00022591,2]
[390908596,1760210816600,-500.0,0.00022591,2]
[390908597,1760210816635,-276.82,0.00022591,2]
[390908598,1760210816666,-500.0,0.00022591,2]
[390908599,1760210816697,-500.0,0.00022591,2]
[390908600,1760210816726,-500.0,0.00022591,2]
[390908601,1760210816756,-500.0,0.00022591,2]
[390908602,1760210816787,-500.0,0.00022591,2]
[390908603,1760210816951,500.0,0.00022589,2]
[390908604,1760210817108,-500.0,0.00022591,2]
[390908605,1760210817137,-500.0,0.00022591,2]
[390908606,1760210817165,-222.11015804,0.00022591,2]
[390908607,1760210817193,-500.0,0.00022591,2]
[390908608,1760210817221,-500.0,0.00022591,2]
[390908609,1760210817252,-500.0,0.00022591,2]
[390908610,1760210817279,-500.0,0.00022591,2]
[390908611,1760210817307,-500.0,0.00022591,2]
[390908612,1760210817335,-500.0,0.00022591,2]
[390908613,1760210817363,-399.74973697,0.00022591,2]
[390908614,1760210817391,-256.29020998,0.00022591,2]
[390908615,1760210817926,500.0,0.00022589,2]
[390908616,1760210817965,500.0,0.00022589,2]
[390908617,1760210818000,500.0,0.00022589,2]
[390908618,1760210818035,500.0,0.00022589,2]
[390908619,1760210818075,500.0,0.00022589,2]
[390908620,1760210818110,500.0,0.00022589,2]
[390908621,1760210818144,500.0,0.00022589,2]
[390908622,1760210818591,469.79946712,0.00022589,2]
[390908623,1760210821664,-243.70979002,0.00022591,2]
[390908624,1760210821698,-500.0,0.00022591,2]
[390908625,1760210821731,-183.49722552,0.00022591,2]
[390908626,1760210821764,-500.0,0.00022591,2]
[390908627,1760210821798,-500.0,0.00022591,2]
[390908628,1760210821832,-500.0,0.00022591,2]
[390908629,1760210821867,-500.0,0.00022591,2]
[390908630,1760210822027,-500.0,0.00022591,2]
[390908631,1760210822065,-500.0,0.00022591,2]
[390908632,1760210822099,-500.0,0.00022591,2]
[390908633,1760210822131,-500.0,0.00022591,2]
[390908634,1760210822178,-500.0,0.00022591,2]
[390908635,1760210822207,-500.0,0.00022591,2]
[390908636,1760210822236,-500.0,0.00022591,2]
[390908637,1760210822267,-528.93,0.00022591,2]
[390908638,1760210822298,-500.0,0.00022591,2]
[390908639,1760210822332,-533.23,0.00022591,2]
[390908640,1760210822362,-500.0,0.00022591,2]
[390908641,1760210822394,-500.0,0.00022591,2]
[390908642,1760210822423,-500.0,0.00022591,2]
[390908643,1760210822453,-375.69,0.00022591,2]
[390908644,1760210822515,-124.31,0.00022591,2]
[390908645,1760210822564,-500.0,0.00022591,2]
[390908646,1760210822595,-500.0,0.00022591,2]
[390908647,1760210822626,-500.0,0.00022591,2]
[390908648,1760210822657,-500.0,0.00022591,2]
[390908649,1760210822690,-500.0,0.00022591,2]
[390908650,1760210822720,-500.0,0.00022591,2]
[390908651,1760210822750,-500.0,0.00022591,2]
[390908652,1760210822782,-500.0,0.00022591,2]
[390908653,1760210822819,-500.0,0.00022591,2]
[390908654,1760210822855,-251.39,0.00022591,2]
[390908655,1760210824830,-248.61,0.00022591,2]
[390908656,1760210824862,-500.0,0.00022591,2]
[390908657,1760210824896,-500.0,0.00022591,2]
[390908658,1760210824928,-500.0,0.00022591,2]
[390908659,1760210824959,-500.0,0.00022591,2]
[390908660,1760210824990,-535.0,0.00022591,2]
[390908661,1760210825023,-500.0,0.00022591,2]
[390908662,1760210825054,-336.01569667,0.00022591,2]
[390908663,1760210825085,-500.0,0.00022591,2]
[390908664,1760210825120,-500.0,0.00022591,2]
[390908665,1760210825153,-260.75860666,0.00022591,2]
[390908666,1760210825795,-239.24139334,0.00022591,2]
[390908667,1760210825828,-500.0,0.00022591,2]
[390908668,1760210825861,-500.0,0.00022591,2]
[390908669,1760210825892,-517.81125948,0.00022591,2]
[390908670,1760210825923,-500.0,0.00022591,2]
[390908671,1760210825956,-500.0,0.00022591,2]
[390908672,1760210825987,-500.0,0.00022591,2]
[390908673,1760210826017,-500.0,0.00022591,2]
[390908674,1760210826050,-500.0,0.00022591,2]
[390908675,1760210826086,-500.0,0.00022591,2]
[390908676,1760210826191,-500.0,0.00022591,2]
[390908677,1760210826222,-500.0,0.00022591,2]
[390908678,1760210826256,-500.0,0.00022591,2]
[390908679,1760210826287,-261.55,0.00022591,2]
[390908680,1760210826321,-500.0,0.00022591,2]
[390908681,1760210826351,-500.0,0.00022591,2]
[390908682,1760210826381,-500.0,0.00022591,2]
[390908683,1760210826412,-500.0,0.00022591,2]
[390908684,1760210826442,-526.42,0.00022591,2]
[390908685,1760210826473,-500.0,0.00022591,2]
[390908686,1760210826526,-500.0,0.00022591,2]
[390908687,1760210826563,-500.0,0.00022591,2]
[390908688,1760210826595,-500.0,0.00022591,2]
[390908689,1760210826630,-500.0,0.00022591,2]
[390908690,1760210826661,-500.0,0.00022591,2]
[390908691,1760210826692,-500.0,0.00022591,2]
[390908692,1760210826723,-500.0,0.00022591,2]
[390908693,1760210826756,-500.0,0.00022591,2]
[390908694,1760210826790,-500.0,0.00022591,2]
[390908695,1760210826823,-500.0,0.00022591,2]
[390908696,1760210826871,-500.0,0.00022591,2]
[390908697,1760210826903,-500.0,0.00022591,2]
[390908698,1760210826934,-500.0,0.00022591,2]
[390908699,1760210826966,-524.74168789,0.00022591,2]
[390908700,1760210826997,-500.0,0.00022591,2]
[390908701,1760210827029,-500.0,0.00022591,2]
[390908702,1760210827061,-623.6,0.00022591,2]
[390908703,1760210827091,-544.77470764,0.00022591,2]
[390908704,1760210827122,-500.0,0.00022591,2]
[390908705,1760210827152,-113.77720894,0.00022591,2]
[390908706,1760210827210,-500.0,0.00022588,2]
[390908707,1760210827242,-500.0,0.00022589,2]
[390908708,1760210827272,622.62,0.00022588,2]
[390908709,1760210827318,-386.22279106,0.00022591,2]
[390908710,1760210827349,-500.0,0.00022591,2]
[390908711,1760210827381,-500.0,0.00022591,2]
[390908712,1760210827413,-500.0,0.00022591,2]
[390908713,1760210827446,-500.0,0.00022591,2]
[390908714,1760210827475,-500.0,0.00022591,2]
[390908715,1760210827505,-500.0,0.00022591,2]
[390908716,1760210827535,-500.0,0.00022591,2]
[390908717,1760210827569,-500.0,0.00022591,2]
[390908718,1760210827599,-500.0,0.00022591,2]
[390908719,1760210829418,500.0,0.00022589,2]
[390908720,1760210830130,500.0,0.00022589,2]
[390908721,1760210830812,500.0,0.00022589,2]
[390908722,1760210830843,500.0,0.0002259,2]
[390908723,1760210831476,500.0,0.00022589,2]
[390908724,1760210831579,500.0,0.0002259,2]
[390908725,1760210832050,500.0,0.00022589,2]
[390908726,1760210832195,500.0,0.0002259,2]
[390908727,1760210832442,385.43,0.00022589,2]
[390908728,1760210832659,500.0,0.0002259,2]
[390908729,1760210833084,500.0,0.0002259,2]
[390908730,1760210833112,500.0,0.0002259,2]
[390908731,1760210833152,500.0,0.0002259,2]
[390908732,1760210833261,410.98,0.0002259,2]
[390908733,1760210833315,580.98,0.0002259,2]
[390908734,1760210833339,4419.02,0.0002259,2]
[390908735,1760210834399,500.0,0.00022588,2]
[390908736,1760210837753,500.0,0.00022588,2]
[390908737,1760210841624,570.07,0.00022589,2]
[390908738,1760210841789,520.67,0.00022589,2]
[390908739,1760210845489,1200.0,0.0002259,2]
[390908740,1760210848188,240.2,0.0002259,2]
[390908741,1760210848972,482.40120697,0.00022588,2]
[390908742,1760210850924,-500.0,0.00022591,2]
[390908743,1760210850954,-500.0,0.00022591,2]
[390908744,1760210850984,-500.0,0.00022591,2]
[390908745,1760210851014,-500.0,0.00022591,2]
[390908746,1760210851043,-500.0,0.00022591,2]
[390908747,1760210851075,-500.0,0.00022591,2]
[390908748,1760210851108,-500.0,0.00022591,2]
[390908749,1760210851142,-500.0,0.00022591,2]
[390908750,1760210851171,-199.17,0.00022591,2]
[390908751,1760210851200,-500.0,0.00022591,2]
[390908752,1760210851229,-101.67,0.00022591,2]
[390908753,1760210852145,-398.33,0.00022591,2]
[390908754,1760210852173,-632.86300147,0.00022591,2]
[390908755,1760210852201,-500.0,0.00022591,2]
[390908756,1760210852228,-500.0,0.00022591,2]
[390908757,1760210852257,-500.0,0.00022591,2]
[390908758,1760210852284,-604.58,0.00022591,2]
[390908759,1760210852312,-500.0,0.00022591,2]
[390908760,1760210852342,-500.0,0.00022591,2]
[390908761,1760210852369,-500.0,0.00022591,2]
[390908762,1760210852396,-228.46399706,0.00022591,2]
[390908763,1760210852436,-271.53600294,0.00022591,2]
[390908764,1760210852464,-500.0,0.00022591,2]
[390908765,1760210852491,-500.0,0.00022591,2]
[390908766,1760210852517,-500.0,0.00022591,2]
[390908767,1760210852550,-500.0,0.00022591,2]
[390908768,1760210852579,-500.0,0.00022591,2]
[390908769,1760210852606,-500.0,0.00022591,2]
[390908770,1760210852637,-500.0,0.00022591,2]
[390908771,1760210852664,-567.79,0.00022591,2]
[390908772,1760210852690,-500.0,0.00022591,2]
[390908773,1760210852734,-500.0,0.00022591,2]
[390908774,1760210852761,-500.0,0.00022591,2]
[390908775,1760210852789,-500.0,0.00022591,2]
[390908776,1760210852816,-500.0,0.00022591,2]
[390908777,1760210852844,-500.0,0.00022591,2]
[390908778,1760210852962,-500.0,0.00022591,2]
[390908779,1760210854906,500.0,0.00022591,2]
[390908780,1760210854945,500.0,0.00022591,2]
[390908781,1760210855541,500.0,0.00022588,2]
[390908782,1760210855791,500.0,0.00022588,2]
[390908783,1760210855848,2000.01,0.00022591,2]
[390908784,1760210855872,2999.99,0.00022591,2]
[390908785,1760210855902,150.0,0.00019099,2]
[390908786,1760210855978,365.6792584,0.00022591,2]
[390908787,1760210856031,500.0,0.00022588,2]
[390908788,1760210856323,243.51,0.00020835,2]
[390908789,1760210856487,500.0,0.00022588,2]
[390908790,1760210856736,500.0,0.00022588,2]
[390908791,1760210856766,365.27,0.00022571,2]
[390908792,1760210856985,530.85,0.00022588,2]
[390908793,1760210859937,500.0,0.00022591,2]
[390908794,1760210862258,500.0,0.00022591,2]
[390908795,1760210862545,-300.0,0.000226,2]
[390908796,1760210862572,-300.0,0.000226,2]
[390908797,1760210865418,-172.5,0.0002274,2]
[390908798,1760210866500,500.0,0.00022588,2]
[390908799,1760210866734,500.0,0.00022588,2]
[390908800,1760210866762,8655.01,0.00018,2]
[390908801,1760210866786,10000.01,0.00018,2]
[390908802,1760210866811,10000.01,0.00018,2]
[390908803,1760210866835,8800.01,0.00018,2]
[390908804,1760210866860,10000.01,0.00018,2]
[390908805,1760210866884,10000.01,0.00018,2]
[390908806,1760210866909,10000.01,0.00018,2]
[390908807,1760210866933,2844.7107416,0.00018,2]
[390908808,1760210866958,8335.75919564,0.00018,2]
[390908809,1760210866990,500.0,0.00022588,2]
[390908810,1760210867018,500.0,0.0002259,2]
[390908811,1760210867217,611.16,0.00022588,2]
[390908812,1760210867244,500.0,0.0002259,2]
[390908813,1760210867474,500.0,0.0002259,2]
[390908814,1760210867696,218.26992303,0.0002274,2]
[390908815,1760210867723,500.0,0.0002259,2]
[390908816,1760210867949,312.77119517,0.0002259,2]
[390908817,1760210867975,500.0,0.00022591,2]
[390908818,1760210868227,500.0,0.00022591,2]
[390908819,1760210868481,500.0,0.00022591,2]
[390908820,1760210868757,500.0,0.00022591,2]
[390908821,1760210868906,500.0,0.00022589,2]
[390908822,1760210869031,567.9,0.00022591,2]
[390908823,1760210872379,500.0,0.00022589,2]
[390908824,1760210873647,500.0,0.00022591,2]
[390908825,1760210874790,500.0,0.00022589,2]
[390908826,1760210875488,500.0,0.00022591,2]
[390908827,1760210876614,525.5,0.00022588,2]
[390908828,1760210878781,1764.4088818,0.0002274,2]
[390908829,1760210879013,500.0,0.00022589,2]
[390908830,1760210879247,164.25080436,0.00022589,2]
[390908831,1760210879270,335.74919564,0.00022589,2]
[390908832,1760210879486,379.44032663,0.00022589,2]
[390908833,1760210880592,-3235.5911182,0.0002274,2]
[390908834,1760210880623,-300.0,0.0002304,20]
[390908835,1760210880651,-300.0,0.0002304,20]
[390908836,1760210880679,-300.0,0.0002304,20]
[390908837,1760210880721,-300.0,0.0002304,20]
[390908838,1760210880752,-300.0,0.0002304,20]
[390908839,1760210880788,-228.8277636,0.0002304,20]
[390908840,1760210881363,-71.1722364,0.0002304,20]
[390908841,1760210881396,-300.0,0.0002304,20]
[390908842,1760210881428,-300.0,0.0002304,20]
[390908843,1760210881459,-300.0,0.0002304,20]
[390908844,1760210881490,-300.0,0.0002304,20]
[390908845,1760210881522,-300.0,0.0002304,20]
[390908846,1760210881559,-300.0,0.0002304,20]
[390908847,1760210881593,-300.0,0.0002304,20]
[390908848,1760210881629,-300.0,0.0002304,20]
[390908849,1760210881664,-300.0,0.0002304,20]
[390908850,1760210882837,300.0,0.00023039,2]
[390908852,1760210889789,500.0,0.00022589,2]
[390908853,1760210890035,500.0,0.00022589,2]
[390908854,1760210890297,500.0,0.00022589,2]
[390908855,1760210890549,500.0,0.00022589,2]
[390908856,1760210890788,500.0,0.00022589,2]
[390908857,1760210891026,500.0,0.00022589,2]
[390908858,1760210891089,-600.0,0.00023041,20]
[390908859,1760210891265,453.8,0.00022589,2]
[390908860,1760210893267,5014.0,0.00018,2]
[390908861,1760210896586,500.0,0.0002259,2]
[390908862,1760210899150,-153.0,0.000231,2]
[390908863,1760210899472,500.0,0.00022591,2]
[390908864,1760210899702,500.0,0.00022591,2]
[390908865,1760210899945,500.0,0.00022591,2]
[390908866,1760210900061,2110.84919684,0.000176,2]
[390908867,1760210901103,5000.0,0.00023041,2]
[390908868,1760210903852,-500.0,0.00023336,2]
[390908869,1760210907698,500.0,0.00022588,2]
[390908870,1760210907957,157.63,0.00022588,2]
[390908871,1760210909117,8342.38,0.00017,2]
[390908872,1760210909141,10000.01,0.00017,2]
[390908873,1760210909163,10000.01,0.00017,2]
[390908874,1760210909186,1924.67168568,0.00017,2]
[390908875,1760210909712,420.05512422,0.00022,5]
[390908876,1760210911078,10000.01,0.0002,20]
[390908877,1760210911102,10000.01,0.0002,20]
[390908878,1760210911132,8933.56516569,0.0002,20]
[390908879,1760210911816,1066.44483431,0.00015,2]
[390908880,1760210911838,10000.01,0.00015,2]
[390908881,1760210911860,10000.01,0.00015,2]
[390908882,1760210911882,7908.96234412,0.00015,2]
[390908883,1760210911944,2091.04765588,0.0002,2]
[390908884,1760210911968,9700.39991718,0.0002,2]
[390908885,1760210912150,299.61008282,0.0002061,2]
[390908886,1760210912173,1073.26731017,0.0002061,2]
[390908888,1760210913475,500.0,0.00022591,2]
[390908889,1760210913503,587.69329788,0.000149,2]
[390908890,1760210913617,1000.0,0.0001,2]
[390908891,1760210913765,500.0,0.00022591,2]
[390908892,1760210914037,536.12,0.00022591,2]
[390908893,1760210914402,3235.59160572,0.00018,2]
[390908894,1760210915038,500.0,0.00022588,2]
[390908895,1760210915242,500.0,0.00022589,2]
[390908896,1760210915473,292.03,0.00022589,2]
[390908897,1760210916698,500.0,0.00022589,2]
[390908898,1760210916943,500.0,0.00022589,2]
[390908899,1760210917198,275.30778623,0.00022589,2]
[390908900,1760210917223,224.69221377,0.00022589,2]
[390908901,1760210917367,500.0,0.0002259,2]
[390908902,1760210917443,500.0,0.00022589,2]
[390908903,1760210917489,500.0,0.00022589,2]
[390908904,1760210917557,213.23869478,0.00016,2]
[390908905,1760210917617,500.0,0.0002259,2]
[390908906,1760210917729,500.0,0.00022589,2]
[390908907,1760210917761,500.0,0.00022589,2]
[390908908,1760210917845,500.0,0.0002259,2]
[390908909,1760210918000,500.0,0.00022589,2]